Cogmind - Beta 17 @@@ ROGUE MODE // 2026.07.04 @ 14:04:04 Player: THN-L0C Result: Destroyed by 8R-AWN with 8R-AWN's Boregun Performance ------------- Evolutions (1) 500 Regions Visited (4) 800 Robots Destroyed (48) 240 Value Destroyed (1103) 1103 Prototype IDs (24) 480 Alien Tech Used (0) 0 Bonus (300) 300 TOTAL SCORE: 3423 Bonus ------- Aligned with FarCom 300 Cogmind --------- Core Integrity 0/400 Matter 241/300 Energy 85/100 System Corruption 9% Temperature Cool (0) Movement Core (400) Ox7 Location -9/Exiles Parts ------- > --- POWER (1) -------- (None) > --- PROPULSION (3) --- (None) > --- UTILITY (3) ------ Large Storage Unit > --- WEAPON (2) ------- Heavy Assault Rifle > --- INVENTORY (15) --- Improved Ion Engine Huge Storage Unit High-capacity Matter Pod (200) Improved Terrain Scanner Hardened Light Armor Plating Hardened Light Armor Plating Tractor Beam Improved Light Cannon Heavy Hammer Peak State ------------ > --- POWER ------------ Improved Ion Engine > --- PROPULSION ------- Improved Treads Improved Treads Improved Treads > --- UTILITY ---------- Large Storage Unit Salvage Targeting Computer Hardened Light Armor Plating > --- WEAPON ----------- Improved Assault Rifle Improved Assault Rifle > --- INVENTORY -------- Improved Ion Engine Improved Treads Huge Storage Unit High-capacity Matter Pod Improved Terrain Scanner Hardened Light Armor Plating Hardened Light Armor Plating Tractor Beam Heavy Assault Rifle Heavy Assault Rifle Improved Light Cannon Heavy Hammer Deploy-a-Sentry Deploy-a-Sentry Deploy-a-Sentry [Rating: 23] Favorites ----------- Power Improved Ion Engine Engine Improved Ion Engine Propulsion Improved Treads Treads Improved Treads Leg Aluminum Leg Wheel Armored Wheel Utility Large Storage Unit Device Seismic Detector Storage Large Storage Unit Processor Salvage Targeting Computer Protection Hardened Light Armor Plating Weapon Improved Assault Rifle Energy Gun Medium Laser Ballistic Gun Improved Assault Rifle Special Weapon Mining Laser Build | -11 -10 -9 -9 -9 ------- Run | Yrd Mat Mat Min Exi Slots Evolved 2 | . . 2 . . Power . | . . . . . Propulsion 1 | . . 1 . . Utility 1 | . . 1 . . Weapon . | . . . . . Parts Attached 38 | 6 8 18 2 4 Power 2 | 1 . 1 . . Engine 2 | 1 . 1 . . Core . | . . . . . Reactor . | . . . . . Propulsion 12 | 2 2 6 1 1 Treads 9 | . 2 5 1 1 Leg 2 | 2 . . . . Wheel 1 | . . 1 . . Hover . | . . . . . Flight . | . . . . . Utility 12 | 2 2 6 1 1 Device 1 | 1 . . . . Storage 4 | 1 1 1 1 . Processor 1 | . . . . 1 Hackware . | . . . . . Protection 6 | . 1 5 . . Artifact . | . . . . . Weapon 12 | 1 4 5 . 2 Energy Gun 3 | 1 2 . . . Energy Cannon . | . . . . . Ballistic Gun 8 | . 1 5 . 2 Ballistic Cannon . | . . . . . Launcher . | . . . . . Special Weapon 1 | . 1 . . . Impact Weapon . | . . . . . Slashing Weapon . | . . . . . Piercing Weapon . | . . . . . Special Melee Weapon . | . . . . . Unidentified Prototypes 1 | . . 1 . . Parts Lost 14 | . 1 3 . 10 Power 1 | . . . . 1 Propulsion 7 | . . 3 . 4 Utility 2 | . . . . 2 Weapon 4 | . 1 . . 3 Highest Loss Streak 10 | . 1 1 . 10 To Critical Strikes 2 | . . . . 2 Average Backups 13 | . 10 14 15 13 Power . | . . . 1 1 Propulsion 3 | . 5 3 2 1 Utility 5 | . 3 6 7 7 Weapon 3 | . 1 4 4 3 Tool/Special . | . . . . . Unused Backups 11 | . . 2 1 8 Power 1 | . . . . 1 Propulsion . | . . . . . Utility 6 | . . . 1 5 Weapon 4 | . . 2 . 2 Tool/Special . | . . . . . Average Slot Usage (%) 97 | . 95 99 100 96 Engine 11 | . 14 10 11 10 Treads 30 | . 25 32 33 31 Device 3 | . 8 2 . . Storage 12 | . 14 11 11 11 Protection 14 | . 5 19 22 16 Energy Gun 5 | . 17 . . . Ballistic Gun 15 | . 5 20 22 21 Peak Build Rating 23 | 6 13 21 21 23 Average Rating 16 | 4 10 19 20 20 On Entrance 11 | . 6 11 21 21 Avg Prop Armor Cover (%) . | . . . . . Naked Turns . | . . . . . Heaviest Build 45 | 13 35 45 45 45 Greatest Support 69 | 20 46 69 69 69 Greatest Overweight (x) 3 | 3 1 . . . Average Overweight (x) . | . . . . . Largest Inventory Capacity 15 | 8 15 15 15 15 Average Capacity 14 | 7 12 15 15 15 Most Carried 15 | 2 15 15 15 15 Average Carried 13 | . 10 14 14 14 Final Capacity 15 | 8 15 15 15 15 Final Carried 15 | 2 15 15 15 9 Class Distribution -------------------- 100% | Mutant Dominant Class ---------------- Mutant | -10/Materials Mutant | -9/Materials Mutant | -9/Mines Mutant | -9/Exiles Resources | -11 -10 -9 -9 -9 ----------- Run | Yrd Mat Mat Min Exi Matter Collected 1517 | 123 365 944 79 6 Remotely . | . . . . . Salvage Created 1542 | 11 428 1103 . . Parts 92 | 4 19 69 . . Haulers Intercepted 3 | . 1 2 . . Recyclers Shooed 2 | 1 1 . . . Parts Field Recycled . | . . . . . Retrieved Matter . | . . . . . Parts Self-Destructed . | . . . . . Prevented . | . . . . . Parts Restored . | . . . . . Kills | -11 -10 -9 -9 -9 ------- Run | Yrd Mat Mat Min Exi Combat Hostiles Destroyed 37 | . 9 28 . . Guns 37 | . 9 28 . . Classes Destroyed 9 | 1 5 3 . . Worker 1 | . . 1 . . Tunneler 1 | 1 . . . . Hauler 3 | . 1 2 . . Recycler 1 | . 1 . . . Watcher 5 | . 1 4 . . Swarmer 16 | . 3 13 . . Grunt 13 | . 6 7 . . Duelist 1 | . . 1 . . Sentry 7 | . . 7 . . Best Kill Streak 6 | 1 3 6 . . Combat Bots Only 6 | . 3 6 . . Max Kills in Single Turn 2 | 1 1 2 . . Gunslinging 1 | . . 1 . . Exploded . | . . . . . Melee . | . . . . . Uniques/NPCs Destroyed 1 | . . . . 1 EX-DEC (-9/Exiles) Combat | -11 -10 -9 -9 -9 -------- Run | Yrd Mat Mat Min Exi Hostile Shots Fired 292 | . 51 172 . 69 Missed 80 | . 13 50 . 17 Hits 212 | . 38 122 . 52 Melee 15 | . . 6 . 9 Projectile 197 | . 38 116 . 43 Critical Strikes 16 | . 1 5 . 10 Part Disruptions 1 | . . . . 1 Damage Taken 3552 | . 651 1554 . 1347 Core 645 | . 243 121 . 281 Absorbed by Shields . | . . . . . Regen/Repaired (Parts) 62 | . . 62 . . Core Remaining (%) 51 | 100 2 . . . Volleys Fired 174 | 7 50 108 1 8 Largest 2 | 1 2 2 2 2 Hottest 123 | 50 100 123 46 46 Shots Fired 301 | 7 86 192 3 13 Gun 286 | 7 80 183 3 13 Cannon . | . . . . . Launcher . | . . . . . Special 15 | . 6 9 . . Kinetic 225 | . 26 183 3 13 Thermal 76 | 7 60 9 . . Explosive . | . . . . . Electromagnetic . | . . . . . Robot Hit Streak 23 | 2 7 23 6 3 Robot Miss Streak 4 | 3 2 3 1 4 Penetration Max . | . . . . . Secondary Targets 7 | . . 7 . . Max Gunslinging Chain 1 | . . 1 . . Shots Hit Robots 208 | 3 54 144 2 5 Core Hits 71 | 1 23 47 . . Critical Kills . | . . . . . Critical Parts Destroyed 1 | . . 1 . . Critical Strikes 6 | 1 4 1 . . Burn 5 | 1 4 . . . Destroy 1 | . . 1 . . Melee Attacks . | . . . . . Impact . | . . . . . Slashing . | . . . . . Piercing . | . . . . . Sneak Attacks . | . . . . . Combat Hostiles . | . . . . . Follow-up Attacks . | . . . . . Damage Inflicted 3057 | 51 713 2157 34 102 Guns 3050 | 51 713 2157 27 102 Cannons . | . . . . . Explosions . | . . . . . Melee . | . . . . . Ramming 7 | . . . 7 . Kinetic 2511 | . 225 2157 27 102 Thermal 539 | 51 488 . . . Explosive . | . . . . . Electromagnetic . | . . . . . Impact . | . . . . . Slashing . | . . . . . Piercing . | . . . . . Highest Corruption 9 | . 4 2 2 9 Average Corruption 2 | . 3 2 2 2 Corruption Purged . | . . . . . Corruption Blocked . | . . . . . Effects 43 | . 21 10 9 3 Message Errors 11 | . 6 1 3 1 Matter Fused 14 | . 6 4 2 2 Heat Flow Errors 2 | . . 1 1 . Energy Discharges 5 | . 3 2 . . Parts Rejected 1 | . 1 . . . Data Loss (minor) 4 | . 3 . 1 . Data Loss (major) 2 | . . 1 1 . Misfires 4 | . 2 1 1 . Overload Shots . | . . . . . Overflow Damage . | . . . . . Projectiles . | . . . . . Explosions . | . . . . . Melee . | . . . . . Knockbacks . | . . . . . Impact . | . . . . . Kinetic . | . . . . . Secondary . | . . . . . Self-Inflicted Damage . | . . . . . Shots . | . . . . . Rammed 3 | . . 1 2 . Targets Rammed 3 | . . 1 2 . Kicked . | . . . . . Crushed . | . . . . . Highest Temperature 368 | 50 368 247 221 . Average Temperature 73 | 21 118 38 96 . Received Heat Transfer 707 | . 288 399 . 20 Effects 3 | . 3 . . . Shutdowns 1 | . 1 . . . Interference 2 | . 2 . . . Siege Activations . | . . . . . Martial Activations . | . . . . . Shielding Activations . | . . . . . Robots Disrupted . | . . . . . Combat Hostiles . | . . . . . Robots Corrupted . | . . . . . Combat Hostiles . | . . . . . Parts Fried . | . . . . . Impact Corruptions . | . . . . . Robots Melted . | . . . . . Combat Hostiles . | . . . . . Parts Melted 5 | . 5 . . . Heat Transferred 1887 | 222 1665 . . . Parts Sabotaged . | . . . . . Parts Stolen . | . . . . . Parts Stripped . | . . . . . Power Chain Reactions . | . . . . . Alert | -11 -10 -9 -9 -9 ------- Run | Yrd Mat Mat Min Exi Maximum Alert Level 1 | . . 1 . . Low Security (%) 77 | 100 100 49 100 . Level 1 22 | . . 50 . . Level 2 . | . . . . . Level 3 . | . . . . . Level 4 . | . . . . . Level 5 . | . . . . . High Security . | . . . . . Max Security . | . . . . . Peak Influence 336 | 5 114 336 15 . Initial 15 | . . 1 15 . Average 92 | . 21 188 . . Influence Increases 1161 | 5 276 880 . . Destroy 0b10 Robot/C 740 | . 180 560 . . Destroy 0b10 Robot/NC 55 | 5 15 35 . . Destroy Leader 186 | . 44 142 . . Successful Hack 73 | . 31 42 . . Destroy Structure 17 | . 6 11 . . Lose Combat Pursuer 90 | . . 90 . . Influence Decreases 1161 | 5 271 846 39 . Entered New Map 28 | . . 4 24 . Time Decay 743 | 5 211 512 15 . Lost Part 40 | . 10 30 . . Purge Threat 350 | . 50 300 . . Squads Dispatched 3 | . . 3 . . Investigation 1 | . . 1 . . Extermination . | . . . . . Reinforcement 2 | . . 2 . . Assault . | . . . . . Garrison . | . . . . . Intercept . | . . . . . Searches Triggered . | . . . . . Construction Impeded . | . . . . . Haulers Reinforced . | . . . . . Active Scanning Responses . | . . . . . Cargo Convoy Interrupts . | . . . . . Stealth | -11 -10 -9 -9 -9 --------- Run | Yrd Mat Mat Min Exi Distress Signals 1 | . 1 . . . Communications Jammed . | . . . . . Distress Signals . | . . . . . Times Spotted 76 | . 23 44 . 9 Peak Tracking Total 14 | . 4 5 . 14 Tactical Retreats 7 | . 1 4 . 2 Traps | -11 -10 -9 -9 -9 ------- Run | Yrd Mat Mat Min Exi Traps Triggered 5 | . 3 2 . . Indirectly . | . . . . . Trap Hack Attempts . | . . . . . Triggered . | . . . . . Disarmed . | . . . . . Reprogrammed . | . . . . . Reused . | . . . . . Traps Extracted . | . . . . . Installed . | . . . . . Triggered . | . . . . . Machines | -11 -10 -9 -9 -9 ---------- Run | Yrd Mat Mat Min Exi Machines Disabled 1 | . . . . 1 Max in Single Turn . | . . . . . Machines Repaired . | . . . . . Machines Dismantled . | . . . . . Machines Sabotaged . | . . . . . Overloaded Fab Kills . | . . . . . Hacking | -11 -10 -9 -9 -9 --------- Run | Yrd Mat Mat Min Exi Machines Accessed 19 | . 7 10 1 1 Terminals 15 | . 7 7 1 . Fabricators . | . . . . . Repair Stations 1 | . . 1 . . Recycling Units . | . . . . . Scanalyzers 2 | . . 2 . . Garrison Access . | . . . . . Total Hacks 60 | . 24 32 3 1 Successful 33 | . 11 20 1 1 Failed 25 | . 12 12 1 . Catastrophic 5 | . 1 4 . . Database Lockouts 2 | . 1 . 1 . Manual 44 | . 22 16 5 1 Terminals 45 | . 24 18 3 . Fabricators . | . . . . . Repair Stations 3 | . . 3 . . Recycling Units . | . . . . . Scanalyzers 11 | . . 11 . . Garrison Access . | . . . . . Terminal Hacks 8 | . 3 3 1 1 Part Schematic 1 | . 1 . . . Robot Analysis 2 | . 1 . 1 . Unreport Threat 3 | . 1 2 . . Locate Traps 1 | . . 1 . . Proto ID Catalog 1 | . . . . 1 Fabricator Hacks . | . . . . . Repair Station Hacks 2 | . . 2 . . Scan Component 1 | . . 1 . . Repair 1 | . . 1 . . Recycling Unit Hacks . | . . . . . Scanalyzer 9 | . . 9 . . Insert Component 2 | . . 2 . . Analyze 2 | . . 2 . . Retrieve Study 5 | . . 5 . . Garrison Access Hacks . | . . . . . Unauthorized Hacks 14 | . 8 6 . . Terminals 14 | . 8 6 . . Botnet 4 | . 2 2 . . Operators 1 | . 1 . . . Skim 9 | . 5 4 . . Fabricators . | . . . . . Repair Stations . | . . . . . Recycling Units . | . . . . . Scanalyzers . | . . . . . Garrison Access . | . . . . . Data Cores Recovered . | . . . . . Used . | . . . . . Hacking Detections 16 | . 7 9 . . Full Trace Events . | . . . . . Feedback Events . | . . . . . Feedback Blocked . | . . . . . Robot Schematics Acquired . | . . . . . Robots Built . | . . . . . Authchips . | . . . . . Time . | . . . . . Total Robot Build Rating . | . . . . . Part Schematics Acquired 3 | . 1 2 . . Parts Built . | . . . . . Authchips . | . . . . . Time . | . . . . . Total Part Build Rating . | . . . . . Part Studies Acquired 5 | . . 5 . . Parts Repaired 1 | . . 1 . . Time 16 | . . 16 . . Parts Recycled . | . . . . . Recycled Matter . | . . . . . Retrieved Matter . | . . . . . Retrieved Components . | . . . . . Parts Scanalyzed 2 | . . 2 . . Part Schematics Acquired 2 | . . 2 . . Parts Damaged . | . . . . . Bothacking | -11 -10 -9 -9 -9 ------------ Run | Yrd Mat Mat Min Exi Used RIF Installer . | . . . . . Robots Hacked . | . . . . . Non-combat . | . . . . . Combat . | . . . . . Robot Hacks Applied . | . . . . . Relay Couplers Released . | . . . . . Fabnet Peak Effective % . | . . . . . Robots Rewired . | . . . . . Allies Hacked . | . . . . . Hacks Repelled . | . . . . . Allies | -11 -10 -9 -9 -9 -------- Run | Yrd Mat Mat Min Exi Total Allies 3 | . . . 3 . Largest Group 3 | . . . 3 3 Highest-Rated Group 40 | . . . 40 40 Highest-Rated Ally 16 | . . . 16 16 Total Orders . | . . . . . Ally Attacks 28 | . . . . 28 Total Damage 693 | . . . . 693 Kills 2 | . . . . 2 Allies Corrupted . | . . . . . Allies Melted . | . . . . . Turrets Deployed 2 | . . . . 2 Intel | -11 -10 -9 -9 -9 ------- Run | Yrd Mat Mat Min Exi Active Infowar (turns) 1259 | 21 889 349 . . Seismic 1259 | 21 889 349 . . Robot Analysis Total 2 | . 1 . 1 . Derelict Logs Recovered 2 | . . . 2 . Drone Launches . | . . . . . Drone Recoveries . | . . . . . Exploration | -11 -10 -9 -9 -9 ------------- Run | Yrd Mat Mat Min Exi Turns Passed 4343 | 83 1480 1798 641 341 Spaces Moved 2090 | 46 611 850 391 192 Core 21 | 21 . . . . Treads 1968 | . 535 850 391 192 Legs 101 | 25 76 . . . Wheels . | . . . . . Hover . | . . . . . Flight . | . . . . . Fastest Speed 50 | 50 120 160 160 160 Average Speed 157 | 125 155 160 160 160 Slowest Speed 200 | 200 190 160 160 160 Overloaded Moves . | . . . . . Propulsion Burnouts . | . . . . . Robots Hopped . | . . . . . Potential Cave-ins . | . . . . . Cave-ins Triggered . | . . . . . Exploration Rate (%) 61 | 3 89 77 84 54 Regions Visited 4 Branch Regions 2 Pre-discovered Areas 2 | . 1 . 1 . Known Exits Taken 2 | . 1 1 . . Unknown Exits Taken 2 | 1 . . 1 . Scrap Searched 4 | . . . 4 . Spaces Dug 12 | . 5 7 . . Terrain Destroyed 15 | . 6 9 . . Melee . | . . . . . Projectile 15 | . 6 9 . . AOE . | . . . . . Terrain Rammed . | . . . . . Walls Destroyed . | . . . . . Machines Disabled . | . . . . . Actions | -11 -10 -9 -9 -9 --------- Run | Yrd Mat Mat Min Exi Total 2803 | 61 1043 1080 405 214 Wait 424 | 1 351 68 4 . Move 2086 | 45 610 849 390 192 Hop . | . . . . . Pick Up 34 | 2 15 12 2 3 Fast Attach 10 | 6 2 2 . . Attach 10 | . . 7 . 3 Detach . | . . . . . Swap 38 | . 12 21 3 2 Drop 24 | . 3 12 3 6 Fire 174 | 7 50 108 1 8 Melee . | . . . . . Ram . | . . . . . Kick . | . . . . . Crush 3 | . . 1 2 . Escape Stasis . | . . . . . Rewire . | . . . . . Trap . | . . . . . Miscellaneous . | . . . . . Route ------- -11/Scrapyard -10/Materials (discovered 5 exits: *Mat x3 / *Min / [*Sub]) -9/Materials (discovered 3 exits: [*Mat x2] / *Min) -9/Mines (discovered 3 exits: [*Mat x2] / *Exi) -9/Exiles (discovered 1 exit: [*Min]) History --------- Turn | Location | Event 10 | -11/Scrapyard | Discovered new exit (range 15) 84 | -11/Scrapyard | Entered Materials 279 | -10/Materials | Discovered new exit (range 7) 304 | -10/Materials | Build established: Mutant 320 | -10/Materials | Central database locked down 551 | -10/Materials | Discovered new exit (range 8) 708 | -10/Materials | Discovered new exit (range 10) 884 | -10/Materials | Derelicts attacked the area 1122 | -10/Materials | Core integrity fell below 50% 1163 | -10/Materials | Core integrity fell below 20% 1222 | -10/Materials | Learned Storage emergency access door positions 1226 | -10/Materials | Discovered new exit (range 15) 1286 | -10/Materials | Identified exit to Materials 1286 | -10/Materials | Identified exit to Mines 1342 | -10/Materials | Learned location of 1 exit from Materials 1390 | -10/Materials | Learned location of Recycling (-8) 1430 | -10/Materials | Learned Storage trap positions 1535 | -10/Materials | Learned location of 1 exit from Storage 1564 | -10/Materials | Entered another Materials area 1564 | -9/Materials | Evolved 2 slots: Propulsion x1, Utility x1 1565 | -9/Materials | Identified exit to Mines 2218 | -9/Materials | Discovered new exit (range 8) 2536 | -9/Materials | Repaired Imp. Ion Engine 2599 | -9/Materials | Discovered new exit (range 9) 3362 | -9/Materials | Entered Mines 3412 | -9/Mines | Discovered new exit (range 15) 3536 | -9/Mines | Learned location of Storage (-8) 3601 | -9/Mines | Found DCF Scrap (12 items) 3727 | -9/Mines | Central database locked down 3799 | -9/Mines | Learned Materials stockpile data 3854 | -9/Mines | Discovered new exit (range 8) 3959 | -9/Mines | Deemed a non-threat by the Exiles lab entrance 3974 | -9/Mines | Assisted by bots powering up and referring to "LRC-V3" 3990 | -9/Mines | Discovered new exit (range 5) 4003 | -9/Mines | Entered Exiles 4003 | -9/Exiles | Accompanied by 3 allies 4024 | -9/Exiles | Discovered new exit (range 15) 4043 | -9/Exiles | Met 8R-AWN 4069 | -9/Exiles | Met EX-HEX 4112 | -9/Exiles | Met EX-BIN 4131 | -9/Exiles | Aligned with FarCom system 4133 | -9/Exiles | Given EX-Vault access code 4178 | -9/Exiles | Opened EX-Vault 4210 | -9/Exiles | Found Deploy-a-Sentry 4213 | -9/Exiles | Found Deploy-a-Sentry 4216 | -9/Exiles | Found Deploy-a-Sentry 4248 | -9/Exiles | Warned to stay clear of 0b10 Research branches 4249 | -9/Exiles | Exiles lab attacked by MAIN.C 4289 | -9/Exiles | DAS Turret deployed 4299 | -9/Exiles | Attacked by the Exiles 4303 | -9/Exiles | DAS Turret deployed 4314 | -9/Exiles | Allies destroyed EX-DEC 4322 | -9/Exiles | Core integrity fell below 50% 4338 | -9/Exiles | Core integrity fell below 20% 4344 | -9/Exiles | Destroyed by 8R-AWN with 8R-AWN's Boregun Last Messages --------------- 04336_ Salvage Targeting Computer destroyed. 04336_ System corrupted by crushing effect (+2). 04336_ Knocked back. 04337_ Penetrated by HV Slug. 04337_ HV Slug penetrates Machine. 04339_ Penetrated by HV Slug. 04339_ Critical hit (Destroy). 04339_ Imp. Assault Rifle destroyed. 04339_ HV Slug penetrates Wall. 04339_ Penetrated by HV Slug. 04339_ HV Slug penetrates Wall. 04341_ Knocked back. 04341_ HV Slug penetrates Machine. 04341_ Penetrated by HV Slug. 04341_ HV Slug penetrates Machine. 04344_ Penetrated by HV Slug. 04344_ Critical hit (Destroy). 04344_ Hvy. Assault Rifle+ destroyed. 04344_ HV Slug penetrates Machine. 04344_ Penetrated by HV Slug. Map ----- +----------------------------------------------------+ | ?????????????????????????????????????????#" | | ?????????????????????????????????????????#" | | ?????????????????????????????????????????#" | | ????????????????????????????####?????????#" | | ???????????????????????????? """????????#" | | ????????????????????????????" """????????## | | ??????????????????????????#"" ?????????# | | ??????????????????????????#"" ?????????#" | | ???????????????????????????"" "?????????#" | | ??????????????????????????? "???#??????#" " | | ????????????????????????????" "???# #???##" ## | | ?????????????? #???????????# #?#?# #??##"" #? | | ?????????????? #####????### #"#?#"####"" #? | | ????????????? ""#####X# # ### " """ ## | | ????????????? "" " "" # | | ????????????? " | | ?????????????# & [ | | ???????????????# [==! | | ????????????????## %%!% % | | ?????????????????## % % =%* | | ??????????????????## | | ?????????????????#?##" % % a | | ?????????????????# # % % """""" | | ?????????????????###; a % ######""" | | ?????????????????# ; % a g% % ##????#####" | | ?????????????????###" @ ""##?????????## | | ??????????????????# ""##???????????# | | ??????????????????#""" ""#????????????# | | ??????????????????#"" % ##????????????? | | ??????????????????#" %&= #??????????? | | ??????????????????#""% ?????????? | | ??????????????????##"" ????????? | | ???????????????????#"""" ????????? | | ???????????????????## ?????????? | | ????????????????????#" ???????????" | | ????????????????????#"""" ????????????? | | ??????????????????????" ????????????? | | ??????????????????????? ??????????????? | | ???????????????????????" ??????????????? | | ????????????????????????? ??????????????? | | ????????????????????????? ??? "??????????????? | | ?????????????????????????????????????????????????? | | ?????????????????????????????????????????????????? | | ?????????????????????????????????????????????????? | | ?????????????????????????????????????????????????? | | ?????????????????????????????????????????????????? | | ?????????????????????????????????????????????????? | | ?????????????????????????????????????????????????? | | ?????????????????????????????????????????????????? | | ?????????????????????????????????????????????????? | +----------------------------------------------------+ Best States ------------- Heat Dissipation 28 Energy Generation 14 Energy Capacity 265 Matter Stores 300 Matter Capacity 300 Sight Range 16 Terrain Scan Density 10 Armor Coverage 375 Evasion (%) 55 Recoil Reduction 3 Salvage Targeting 1 Item Schematics ----------------- Hcp. Storage Unit | -10/Materials | Hacked Seismic Detector | -9/Materials | Scanalyzed Huge Storage Unit | -9/Materials | Scanalyzed Robot Schematics ------------------ None Fabricated ------------ Nothing Repaired ---------- Imp. Ion Engine | 11% | -9/Materials Studied --------- Hvy. Assault Rifle | -9/Materials | Hacked Imp. Treads | -9/Materials | Hacked Imp. Ion Engine | -9/Materials | Hacked Arm. Wheel | -9/Materials | Hacked Hvy. Hammer | -9/Materials | Hacked Alien Tech Used ----------------- None Achievements -------------- None Challenges ------------ None Game ------ Seed MetaDisruptionRegenerator Manual? 0 Play Time 00:30:46 Cumulative 434.1 hours Start 2026.07.04 @ 13:35:50 End 2026.07.04 @ 14:04:04 Sessions 1 Manual Loads 0 Difficulty Rogue Special Mode None Game No. 318 Rogue 318 Adventurer 0 Explorer 0 Win Type - Total 9 Types 4/0/3/2/0/0/0/0/0/0 Lore% 78 Gallery% 73 Achievement% 55 Wizard Run 0 Options --------- Layout 2 ASCII 0 Keyboard 1 Movement Vi Keybinds 0 Fullscreen 2 Font 32/SmallcapsGlow Map View 77x44 Zoom Use 0% Tactical HUD 1 Map Filters NONE Filters NONE Steam 1 RUN: 666a971b-8652-409a-bd5a-9855f1170744